bitfinex-derivatives/quotes_BTCF0:USTF0_20250906
["timestamp","ask_amount","ask_price","bid_price","bid_amount"]
[1757158823538,0.10593771,110790.0,110780.0,0.35000561]
[1757158823739,0.92273771,110790.0,110780.0,0.35000561]
[1757158824334,0.92273771,110790.0,110780.0,0.05925793]
[1757158824539,0.10593771,110790.0,110780.0,0.05925793]
[1757158824739,0.92273771,110790.0,110780.0,0.05925793]
[1757158824936,0.10593771,110790.0,110780.0,0.05925793]
[1757158825141,0.92273771,110790.0,110780.0,0.05925793]
[1757158826539,0.92273771,110790.0,110780.0,0.14044051]
[1757158831948,0.92269771,110790.0,110780.0,0.14044051]
[1757158833449,1.24955944,110790.0,110780.0,0.46730224]
[1757158834352,1.24955944,110790.0,110780.0,0.14044051]
[1757158834553,1.24955944,110790.0,110780.0,0.46730224]
[1757158836447,0.43279944,110790.0,110780.0,0.46730224]
[1757158836752,1.24955944,110790.0,110780.0,0.46730224]
[1757158839448,1.24955944,110790.0,110780.0,0.38611966]
[1757158842157,0.43279944,110790.0,110780.0,0.38611966]
[1757158842457,0.84349771,110790.0,110780.0,0.38611966]
[1757158842656,0.84349771,110790.0,110780.0,0.46739596]
[1757158857165,0.84349771,110790.0,110780.0,0.38611966]
[1757158857966,0.84349771,110790.0,110780.0,0.46739793]
[1757158861165,0.84349771,110790.0,110780.0,0.38611966]
[1757158868170,1.17035944,110790.0,110780.0,0.38611966]
[1757158869267,0.84349771,110790.0,110780.0,0.38611966]
[1757158872567,1.17035944,110790.0,110780.0,0.38611966]
[1757158872766,1.17035944,110790.0,110780.0,0.49986442]
[1757158873873,1.17035944,110790.0,110780.0,0.38611966]
[1757158884895,0.10593771,110790.0,110780.0,0.38611966]
[1757158885179,1.24939944,110790.0,110780.0,0.38611966]
[1757158890789,1.24939944,110790.0,110780.0,0.05925793]
[1757158891091,1.24939944,110790.0,110780.0,0.38611966]
[1757158893492,0.92253771,110790.0,110780.0,0.34979501]
[1757158897293,0.92253771,110790.0,110780.0,0.43107472]
[1757158904003,0.92253771,110790.0,110780.0,0.34979501]
[1757158904502,0.92253771,110790.0,110780.0,0.4310747]
[1757158907301,0.92253771,110790.0,110780.0,0.34979501]
[1757158911108,0.92253771,110790.0,110780.0,0.43107486]
[1757158913811,0.92253771,110790.0,110780.0,0.14053778]
[1757158914010,0.92253771,110790.0,110780.0,0.43107486]
[1757158921217,0.92253771,110790.0,110780.0,0.41259693]
[1757158923618,0.92253771,110790.0,110780.0,0.12205985]
[1757158932623,0.92253771,110790.0,110780.0,0.41259693]
[1757158934624,0.92253771,110790.0,110780.0,0.33131708]
[1757158936726,0.92253771,110790.0,110780.0,0.41259094]
[1757158940721,0.92253771,110790.0,110780.0,0.33131708]
[1757158945335,0.92253771,110790.0,110780.0,0.04078]
[1757158945629,0.92253771,110790.0,110780.0,0.33131708]
[1757158947331,0.92253771,110790.0,110780.0,0.44506184]
[1757158948033,0.92253771,110790.0,110780.0,0.52633465]
[1757158948228,0.92253771,110790.0,110780.0,0.41258989]
[1757158955534,0.92253771,110790.0,110780.0,0.44890623]
[1757158955535,1.24939113,110790.0,110780.0,0.44890623]
[1757158958440,1.24939113,110790.0,110780.0,0.12205281]
[1757158958641,1.24939113,110790.0,110780.0,0.44890623]
[1757158963944,1.24939113,110790.0,110780.0,0.36763342]
[1757158968045,1.24939113,110790.0,110780.0,0.48137818]
[1757158969244,0.92253771,110790.0,110780.0,0.48137818]
[1757158969449,1.24939113,110790.0,110780.0,0.48137818]
[1757158971352,1.24939113,110790.0,110780.0,0.36763342]
[1757158971950,1.24939113,110790.0,110780.0,0.48137818]
[1757158973846,1.24939113,110790.0,110780.0,0.15452476]
[1757158974051,1.24939113,110790.0,110780.0,0.48137818]
[1757158975350,1.24939113,110790.0,110780.0,0.36763342]
[1757158975552,1.24939113,110790.0,110780.0,0.48137818]
[1757158975952,1.24939113,110790.0,110780.0,0.36763342]
[1757158981063,0.92253771,110790.0,110780.0,0.36763342]
[1757158981262,1.24939113,110790.0,110780.0,0.36763342]
[1757158983964,1.24939113,110790.0,110780.0,0.48137818]
[1757158985564,1.24939113,110790.0,110780.0,0.36763342]
[1757158990472,1.24939113,110790.0,110780.0,0.04078]
[1757158990675,1.24939113,110790.0,110780.0,0.44891495]
[1757158991870,1.24939113,110790.0,110780.0,0.12206153]
[1757158992075,0.92253771,110790.0,110780.0,0.08579153]
[1757158992272,1.24939113,110790.0,110780.0,0.10719153]
[1757158992580,1.24939113,110790.0,110780.0,0.43404495]
[1757158993777,1.24939113,110790.0,110780.0,0.44803495]
[1757158994174,0.10593771,110790.0,110780.0,0.44803495]
[1757158994374,1.24895113,110790.0,110780.0,0.44803495]
[1757159009985,0.92209771,110790.0,110780.0,0.44803495]
[1757159010186,1.24895113,110790.0,110780.0,0.44803495]
[1757159010586,0.10593771,110790.0,110780.0,0.44803495]
[1757159010787,0.54261771,110790.0,110780.0,0.36675342]
[1757159011188,0.92205771,110790.0,110780.0,0.36675342]
[1757159013090,0.02428,110790.0,110780.0,0.69360684]
[1757159014084,0.02428,110790.0,110780.0,0.36675342]
[1757159015592,0.02428,110790.0,110780.0,0.33036541]
[1757159016087,0.002,110790.0,110780.0,0.58036541]
[1757159016486,0.002,110790.0,110780.0,0.69411017]
[1757159017686,0.001,110790.0,110780.0,0.58036541]
[1757159018484,0.001,110790.0,110780.0,0.69398483]
[1757159019291,0.001,110790.0,110780.0,0.44398483]
[1757159019486,2.199,110830.0,110780.0,0.53424583]
[1757159019794,0.02154,110810.0,110800.0,0.4070263]
[1757159020093,0.03074435,110810.0,110800.0,0.4070263]
[1757159020294,0.02154,110810.0,110800.0,0.4070263]
[1757159020994,0.02254,110810.0,110800.0,0.4070263]
[1757159021191,0.02554,110810.0,110800.0,0.4070263]
[1757159021393,0.02554,110810.0,110800.0,0.4115363]
[1757159022492,0.02554,110810.0,110800.0,0.33039541]
[1757159026895,0.02454,110810.0,110800.0,0.33039541]
[1757159028294,0.02254,110810.0,110800.0,0.33039541]
[1757159032297,0.02254,110810.0,110800.0,0.4115363]
[1757159032895,0.02254,110810.0,110800.0,0.33039541]
[1757159037298,1.12888541,110810.0,110800.0,0.10846089]
[1757159037598,1.12888541,110810.0,110800.0,0.02732]
[1757159037901,0.83842,110810.0,110800.0,0.02732]
[1757159039395,1.37888541,110810.0,110800.0,0.00451]
[1757159040192,1.75888541,110810.0,110800.0,0.00451]
[1757159041198,1.75788541,110810.0,110800.0,0.00451]
[1757159041397,1.76188541,110810.0,110800.0,0.00451]
[1757159042000,1.41188541,110810.0,110800.0,0.00451]
[1757159044401,1.38188541,110810.0,110800.0,0.00451]
[1757159044804,1.09142,110810.0,110800.0,0.00451]
[1757159045004,1.38188541,110810.0,110800.0,0.00451]
[1757159058217,1.42188541,110810.0,110800.0,0.00451]
[1757159060520,1.13142,110810.0,110800.0,0.00451]
[1757159060721,1.42188541,110810.0,110800.0,0.00451]
[1757159067328,1.13142,110810.0,110800.0,0.00451]
[1757159067530,1.42188541,110810.0,110800.0,0.00451]
[1757159068224,0.60600541,110810.0,110800.0,0.00451]
[1757159068531,0.8415,110810.0,110800.0,0.04049]
[1757159069026,0.02554,110810.0,110800.0,0.04049]
[1757159069333,0.84146,110810.0,110800.0,0.04049]
[1757159069518,0.02554,110810.0,110800.0,0.04049]
[1757159069728,0.84146,110810.0,110800.0,0.04049]
[1757159070124,1.13192541,110810.0,110800.0,0.04049]
[1757159073031,0.84146,110810.0,110800.0,0.04049]
[1757159075438,1.16825222,110810.0,110800.0,0.36728222]
[1757159076237,1.16825222,110810.0,110800.0,0.04049]
[1757159087444,1.17025222,110810.0,110800.0,0.04049]
[1757159087652,1.16825222,110810.0,110800.0,0.04049]
[1757159088346,1.16725222,110810.0,110800.0,0.04049]
[1757159091254,1.16725222,110810.0,110800.0,0.02738]
[1757159092346,0.84042,110810.0,110800.0,0.36712222]
[1757159092552,1.16721222,110810.0,110800.0,0.36712222]
[1757159099761,0.35133222,110810.0,110800.0,0.36712222]
[1757159100058,1.16717222,110810.0,110800.0,0.36712222]
[1757159100761,1.16717222,110810.0,110800.0,0.04033]
[1757159100953,1.16717222,110810.0,110800.0,0.36712222]
[1757159102361,0.84038,110810.0,110800.0,0.36712222]
[1757159103449,1.16717222,110810.0,110800.0,0.36712222]
[1757159106258,0.02454,110810.0,110800.0,0.61712222]
[1757159106464,0.003,110810.0,110800.0,0.61712222]
[1757159106660,0.003,110810.0,110800.0,0.94391444]
[1757159106872,0.0001,110830.0,110820.0,0.68793444]
[1757159107358,0.0001,110830.0,110820.0,1.01901222]
[1757159108161,0.54729941,110850.0,110840.0,0.03435]
[1757159108356,0.02182,110850.0,110840.0,0.36114222]
[1757159108555,0.02182,110850.0,110840.0,0.61114222]
[1757159109562,0.003,110850.0,110840.0,0.93793444]
[1757159110060,0.003,110850.0,110840.0,1.01900279]
[1757159110265,0.02182,110870.0,110860.0,0.36114222]
[1757159110466,2.5823,110880.0,110870.0,0.03435]
[1757159110671,2.91935222,110880.0,110860.0,0.01295]
[1757159110971,0.34861222,110870.0,110860.0,0.36127746]
[1757159111163,0.02182,110870.0,110860.0,0.36127746]
[1757159111967,0.02182,110870.0,110860.0,0.36027746]
[1757159112168,0.03072714,110870.0,110860.0,0.36027746]
[1757159112864,0.03372714,110870.0,110860.0,0.36027746]
[1757159114373,0.69294314,110870.0,110860.0,0.00013524]
[1757159119274,0.36615092,110870.0,110860.0,0.00013524]
[1757159119571,0.69294314,110870.0,110860.0,0.00013524]
[1757159121574,0.69294314,110870.0,110860.0,0.00464524]
[1757159126976,0.36615092,110870.0,110860.0,0.00464524]
[1757159127172,0.69294314,110870.0,110860.0,0.00464524]
[1757159128674,0.69194314,110870.0,110860.0,0.00464524]
[1757159128875,0.69294314,110870.0,110860.0,0.02603524]
[1757159129178,0.69294314,110870.0,110860.0,0.00464524]
[1757159129479,0.69294314,110870.0,110860.0,0.02603524]
[1757159130080,0.69294314,110870.0,110860.0,0.00464524]
[1757159130478,1.50878314,110870.0,110860.0,0.02603524]
[1757159130978,1.50878314,110870.0,110860.0,0.00464524]
[1757159135580,1.4721786,110870.0,110860.0,0.00464524]
[1757159136477,1.49405084,110870.0,110860.0,0.00464524]
[1757159136981,1.20386316,110870.0,110860.0,0.00464524]
[1757159138080,1.20386316,110870.0,110860.0,0.02603524]
[1757159138081,0.13802316,110870.0,110860.0,0.02603524]
[1757159138384,0.92165092,110870.0,110860.0,0.57888292]
[1757159138582,0.003,110870.0,110860.0,0.57888292]
[1757159139081,0.003,110870.0,110860.0,0.75014717]
[1757159139277,0.003,110870.0,110860.0,0.11976359]
[1757159139476,0.003,110870.0,110860.0,0.40995127]
[1757159141080,0.002,110870.0,110860.0,0.40995127]
[1757159141687,0.001,110870.0,110860.0,0.40995127]
[1757159141881,0.001,110870.0,110860.0,0.41295127]
[1757159142283,0.0001,110880.0,110860.0,0.41295127]
[1757159142481,0.0001,110880.0,110870.0,0.35485408]
[1757159142682,0.14728405,110890.0,110880.0,0.03405]
[1757159142881,0.14718405,110890.0,110880.0,0.32423768]
[1757159143886,0.14718405,110890.0,110880.0,0.32873768]
[1757159149787,0.07561032,110890.0,110880.0,0.32873768]
[1757159151687,0.14798471,110890.0,110880.0,0.32873768]
[1757159155093,0.07561032,110890.0,110880.0,0.32873768]
[1757159158594,0.03229032,110890.0,110880.0,0.32873768]
[1757159163395,0.03229032,110890.0,110880.0,0.39340408]
[1757159163599,0.03229032,110890.0,110880.0,0.32873768]
[1757159165400,0.03229032,110890.0,110880.0,0.39340408]
[1757159167300,0.03229032,110890.0,110880.0,0.32873768]
[1757159167604,0.03229032,110890.0,110880.0,0.39340408]
[1757159169704,0.03229032,110890.0,110880.0,0.32873768]
[1757159177305,0.03229032,110890.0,110880.0,0.39340408]
[1757159178211,0.03229032,110890.0,110880.0,0.40980603]
[1757159180607,0.03229032,110890.0,110880.0,0.11961835]
[1757159180811,0.03229032,110890.0,110880.0,0.40980603]
[1757159181911,0.03229032,110890.0,110880.0,0.11961835]
[1757159182212,0.03229032,110890.0,110880.0,0.40980603]
[1757159197422,0.03229032,110890.0,110880.0,0.44589816]
[1757159198724,0.35857013,110890.0,110880.0,0.44589816]
[1757159199324,0.03229032,110890.0,110880.0,0.44589816]
[1757159201829,0.03229032,110890.0,110880.0,0.44689816]
[1757159203525,0.03229032,110890.0,110880.0,0.44789816]
[1757159203728,0.03229032,110890.0,110880.0,0.77417797]
[1757159204429,0.00898032,110890.0,110880.0,0.44789816]
[1757159204621,1.11846816,110900.0,110890.0,0.01337]
[1757159204823,1.44836816,110900.0,110890.0,0.36076981]
[1757159205924,1.56652816,110900.0,110890.0,0.36076981]
[1757159206124,1.56652816,110900.0,110890.0,0.36526981]
[1757159207224,0.75036816,110900.0,110890.0,0.36526981]
[1757159207430,1.56648816,110900.0,110890.0,0.36526981]
[1757159208430,1.57568333,110900.0,110890.0,0.36526981]
[1757159208629,0.75956333,110900.0,110890.0,0.36526981]
[1757159208830,1.57564333,110900.0,110890.0,0.36526981]
[1757159214132,1.59761183,110900.0,110890.0,0.36526981]
[1757159215436,0.78153183,110900.0,110890.0,0.36526981]
[1757159215832,1.59737183,110900.0,110890.0,0.36526981]
[1757159216033,1.57540333,110900.0,110890.0,0.36526981]
[1757159217234,1.59737114,110900.0,110890.0,0.36526981]
[1757159217433,1.57540333,110900.0,110890.0,0.36526981]
[1757159219740,1.57536333,110900.0,110890.0,0.36526981]
[1757159220339,1.24908352,110900.0,110890.0,0.36526981]
[1757159220542,1.57536333,110900.0,110890.0,0.36526981]
[1757159222839,0.75956333,110900.0,110890.0,0.36526981]
[1757159223044,0.43328352,110900.0,110890.0,0.36526981]
[1757159223339,1.05892352,110900.0,110890.0,0.36526981]
[1757159223540,1.05904352,110900.0,110890.0,0.36526981]
[1757159226841,1.05904352,110900.0,110890.0,0.03899]
[1757159227243,1.05904352,110900.0,110890.0,0.36526981]
[1757159232646,1.05904352,110900.0,110890.0,0.03899]
[1757159232847,1.05904352,110900.0,110890.0,0.36526981]
[1757159235046,1.63532333,110900.0,110890.0,0.02562]
[1757159235351,1.63832333,110900.0,110890.0,0.02709]
[1757159235542,1.63832333,110900.0,110890.0,0.35336981]
[1757159235746,1.63832333,110900.0,110890.0,0.02709]
[1757159235946,0.24328352,110900.0,110890.0,0.36617981]
[1757159236247,1.05904352,110900.0,110890.0,0.36617981]
[1757159236947,0.24328352,110900.0,110890.0,0.36617981]
[1757159237148,0.67912352,110900.0,110890.0,0.36617981]
[1757159238153,0.91936352,110900.0,110890.0,0.0399]
[1757159238355,0.91936352,110900.0,110890.0,0.36617981]
[1757159240355,0.10328352,110900.0,110890.0,0.36617981]
[1757159240556,0.91968352,110900.0,110890.0,0.36617981]
[1757159241156,0.91964352,110900.0,110890.0,0.36617981]
[1757159241757,0.10328352,110900.0,110890.0,0.36617981]
[1757159242955,0.85872352,110900.0,110890.0,0.36617981]
[1757159243649,0.10328352,110900.0,110890.0,0.36617981]
[1757159244050,0.85848352,110900.0,110890.0,0.36617981]
[1757159250160,0.78606517,110900.0,110890.0,0.36617981]
[1757159250355,0.03086517,110900.0,110890.0,0.36617981]
[1757159250657,0.70606,110910.0,110900.0,0.03459]
[1757159250959,0.70596,110910.0,110900.0,0.36086981]
[1757159251163,0.71487887,110910.0,110900.0,0.36086981]
[1757159252156,0.71687887,110910.0,110900.0,0.36536981]
[1757159252562,0.78777635,110910.0,110900.0,0.36536981]
[1757159253763,0.91877635,110910.0,110900.0,0.36536981]
[1757159254763,0.10285635,110910.0,110900.0,0.36536981]
[1757159254964,0.91885635,110910.0,110900.0,0.36536981]
[1757159257464,0.91885635,110910.0,110900.0,0.32900203]
[1757159258865,0.91873635,110910.0,110900.0,0.32900203]
[1757159261665,0.91865635,110910.0,110900.0,0.32900203]
[1757159266366,0.91765635,110910.0,110900.0,0.32900203]
[1757159266566,0.91665635,110910.0,110900.0,0.32900203]
[1757159268671,0.10085635,110910.0,110900.0,0.32900203]
[1757159268969,0.91649635,110910.0,110900.0,0.32900203]
[1757159271373,0.91669635,110910.0,110900.0,0.32900203]
[1757159272272,0.10085635,110910.0,110900.0,0.32900203]
[1757159272474,0.91669635,110910.0,110900.0,0.32900203]
[1757159272776,0.10085635,110910.0,110900.0,0.34731726]
[1757159272972,0.03176887,110910.0,110900.0,0.34731726]
[1757159273178,0.48743,110920.0,110910.0,0.03493]
[1757159273380,0.48733,110920.0,110910.0,0.32484203]
[1757159273677,0.48733,110920.0,110910.0,0.40591038]
[1757159274077,0.02285,110920.0,110910.0,0.40591038]
[1757159274576,0.02385,110920.0,110910.0,0.40591038]
[1757159274782,0.02485,110920.0,110910.0,0.40591038]
[1757159275479,0.09581307,110920.0,110910.0,0.40591038]
[1757159276282,0.09581307,110920.0,110910.0,0.12049835]
[1757159276580,0.09581307,110920.0,110910.0,0.41041038]
[1757159276980,0.1050561,110920.0,110910.0,0.41041038]
[1757159279684,0.1050561,110920.0,110910.0,0.32934203]
[1757159280282,0.1050561,110920.0,110910.0,0.41041038]
[1757159280783,0.03409303,110920.0,110910.0,0.32934203]
[1757159284088,0.03409303,110920.0,110910.0,0.41041038]
[1757159288184,0.03409303,110920.0,110910.0,0.32934203]
[1757159289294,0.03409303,110920.0,110910.0,0.41041038]
[1757159290793,0.03409303,110920.0,110910.0,0.32934203]
[1757159291997,0.01124303,110920.0,110910.0,0.32934203]
[1757159292998,0.03409303,110920.0,110910.0,0.32934203]
[1757159299098,0.03409303,110920.0,110910.0,0.41041038]
[1757159299605,0.01124303,110920.0,110910.0,0.41041038]
[1757159299900,0.002,110920.0,110910.0,0.66041038]
[1757159300096,0.002,110920.0,110910.0,0.57934203]
[1757159300694,0.002,110920.0,110910.0,0.6930597]
[1757159303298,0.002,110920.0,110910.0,0.70212386]
[1757159303706,0.0001,110930.0,110920.0,0.32589203]
[1757159303906,0.10560993,110940.0,110930.0,0.03598]
[1757159304097,0.03169742,110940.0,110930.0,0.32589203]
[1757159305005,0.03169742,110940.0,110930.0,0.32489203]
[1757159305206,0.03169742,110940.0,110930.0,0.32939203]
[1757159305809,0.03169742,110940.0,110930.0,0.32839203]
[1757159306008,0.03269742,110940.0,110930.0,0.32839203]
[1757159306306,0.00981742,110940.0,110930.0,0.32839203]
[1757159306613,0.002,110940.0,110930.0,0.40925118]
[1757159307505,0.002,110940.0,110930.0,0.32839203]
[1757159307705,0.002,110940.0,110930.0,0.40925118]
[1757159309207,0.02298,110950.0,110940.0,0.03598]
[1757159309407,0.02288,110950.0,110940.0,0.32589203]
[1757159310602,0.03212065,110950.0,110940.0,0.32589203]
[1757159310800,0.03212065,110950.0,110940.0,0.3438257]
[1757159312808,0.03212065,110950.0,110940.0,0.3458257]
[1757159314417,0.03212065,110950.0,110940.0,0.05591367]
[1757159314616,0.03212065,110950.0,110940.0,0.3458257]
[1757159318521,0.57203268,110950.0,110940.0,0.05591367]
[1757159318710,0.28212065,110950.0,110940.0,0.05591367]
[1757159319316,0.03212065,110950.0,110940.0,0.05591367]
[1757159319511,0.35808158,110950.0,110940.0,0.3818746]
[1757159320522,0.35808158,110950.0,110940.0,0.05591367]
[1757159320919,0.35808158,110950.0,110940.0,0.3818746]
[1757159321516,0.60808158,110950.0,110940.0,0.3818746]
[1757159323227,0.60808158,110950.0,110940.0,0.3863746]
[1757159324526,0.60808158,110950.0,110940.0,0.06041367]
[1757159324728,0.60808158,110950.0,110940.0,0.3863746]
[1757159327628,0.36308158,110950.0,110940.0,0.04744367]
[1757159328831,0.03712065,110950.0,110940.0,0.04744367]
[1757159329233,0.36308158,110950.0,110940.0,0.04744367]
[1757159332431,0.03712065,110950.0,110940.0,0.04744367]
[1757159332633,0.36308158,110950.0,110940.0,0.04744367]
[1757159335024,0.36308158,110950.0,110940.0,0.02443367]
[1757159336331,0.93904251,110950.0,110940.0,0.0065]
[1757159336537,1.26904251,110950.0,110940.0,0.0065]
[1757159337036,0.94308158,110950.0,110940.0,0.0065]
[1757159338339,1.75812158,110950.0,110940.0,0.0065]
[1757159340936,0.94308158,110950.0,110940.0,0.02795]
[1757159341140,1.75816158,110950.0,110940.0,0.04079]
[1757159341340,1.75816158,110950.0,110940.0,0.02795]
[1757159341635,2.08412251,110950.0,110920.0,0.05954439]
[1757159341836,0.01026,110900.0,110890.0,0.0001]
[1757159342137,0.01026,110900.0,110850.0,0.11381767]
[1757159342138,0.02744,110870.0,110850.0,0.11381767]
[1757159342345,0.02694,110840.0,110830.0,0.10671767]
[1757159342531,0.02194,110840.0,110830.0,0.14100767]
[1757159342841,0.02204,110850.0,110840.0,0.03429]
[1757159343040,0.02194,110850.0,110840.0,0.36025093]
[1757159344237,0.02194,110850.0,110840.0,0.03429]
[1757159344445,0.02194,110850.0,110840.0,0.36025093]
[1757159344741,0.02194,110850.0,110840.0,0.36125093]
[1757159345541,0.02194,110850.0,110840.0,0.36225093]
[1757159346054,0.02194,110850.0,110840.0,0.64611532]
[1757159347453,0.02204,110860.0,110850.0,0.03429]
[1757159347654,0.02194,110860.0,110850.0,0.68621186]
[1757159347850,0.02194,110860.0,110850.0,0.72007625]
[1757159348943,0.02194,110860.0,110850.0,0.72107625]
[1757159349145,0.02194,110860.0,110850.0,0.97107625]
[1757159349346,0.02204,110870.0,110860.0,0.03429]
[1757159349546,0.60468,110880.0,110870.0,0.03429]
[1757159349753,0.60458,110880.0,110870.0,0.03429]
[1757159350054,0.02194,110880.0,110870.0,0.39411532]
[1757159353254,0.02194,110880.0,110870.0,0.39511532]
[1757159357860,0.34790093,110880.0,110870.0,0.06915439]
[1757159358059,0.34790093,110880.0,110870.0,0.39511532]
[1757159360655,0.34790093,110880.0,110870.0,0.36125093]
[1757159360856,0.92936186,110880.0,110870.0,0.001]
[1757159361358,0.60340093,110880.0,110870.0,0.001]
[1757159366467,0.35340093,110880.0,110870.0,0.001]
[1757159366665,0.02503,110870.0,110860.0,0.0045]
[1757159366968,1.17399093,110870.0,110860.0,0.0045]
[1757159368764,1.51676438,110870.0,110860.0,0.0045]
[1757159369367,0.00326,110860.0,110840.0,0.01284]
[1757159369555,1.17023093,110850.0,110840.0,0.39558532]
[1757159369962,1.17023093,110850.0,110840.0,0.06962439]
[1757159370561,1.75645186,110850.0,110840.0,0.001]
[1757159370763,1.86645186,110850.0,110840.0,0.001]
[1757159371167,1.88924836,110850.0,110840.0,0.001]
[1757159371967,1.88924836,110850.0,110830.0,0.00451]
[1757159371968,0.02553,110840.0,110830.0,0.00451]
[1757159372172,0.37428743,110840.0,110830.0,0.00451]
[1757159373064,0.47428743,110840.0,110830.0,0.00451]
[1757159373572,0.67295186,110830.0,110820.0,0.0001]
[1757159373770,1.19346743,110830.0,110820.0,0.0001]
[1757159373970,0.94574836,110830.0,110820.0,0.0001]
[1757159374176,1.81030836,110830.0,110820.0,0.0001]
[1757159374374,1.81022836,110830.0,110820.0,0.0001]
[1757159374776,1.81022836,110830.0,110800.0,0.03179596]
[1757159374979,1.81022836,110830.0,110800.0,0.06566035]
[1757159374980,0.34699093,110810.0,110800.0,0.06566035]
[1757159375172,1.17151093,110810.0,110800.0,0.06566035]
[1757159375678,1.17151093,110810.0,110800.0,0.08858035]
[1757159376379,1.17147093,110810.0,110800.0,0.08858035]
[1757159376879,1.18048935,110810.0,110800.0,0.08858035]
[1757159377077,0.35600935,110810.0,110800.0,0.08858035]
[1757159377273,1.18032935,110810.0,110800.0,0.09058035]
[1757159377979,1.25283537,110810.0,110800.0,0.09258035]
[1757159379480,0.42851537,110810.0,110800.0,0.41854128]
[1757159379671,1.25271537,110810.0,110800.0,0.09258035]
[1757159380784,0.42851537,110810.0,110800.0,0.09258035]
[1757159381180,1.25259537,110810.0,110800.0,0.09258035]
[1757159381581,0.92663444,110810.0,110800.0,0.09258035]
[1757159387788,1.21708444,110810.0,110800.0,0.09258035]
[1757159388290,0.39300444,110810.0,110800.0,0.09258035]
[1757159388478,1.21660444,110810.0,110800.0,0.09258035]
[1757159390588,1.21660444,110810.0,110800.0,0.05871596]
[1757159390795,1.21660444,110810.0,110800.0,0.09258035]
[1757159391597,0.92587444,110810.0,110800.0,0.38303035]
[1757159392291,0.8232,110810.0,110800.0,0.63303035]
[1757159392692,0.84571,110810.0,110800.0,0.63303035]
[1757159394198,0.02251,110810.0,110800.0,0.63303035]
[1757159394588,0.90638228,110820.0,110800.0,0.63303035]
[1757159394799,0.92889228,110820.0,110810.0,0.03539]
[1757159395193,0.92889228,110820.0,110810.0,0.06925439]
[1757159396098,0.92889228,110820.0,110810.0,0.07025439]
[1757159399004,0.92889228,110820.0,110810.0,0.07125439]
[1757159399600,0.10573228,110820.0,110810.0,0.07125439]
[1757159399804,0.92861228,110820.0,110810.0,0.07125439]
[1757159400702,0.00013524,110820.0,110810.0,0.61170439]
[1757159402010,0.02264524,110820.0,110810.0,0.61170439]
[1757159402202,0.02264524,110820.0,110810.0,0.07125439]
[1757159402203,0.31309524,110820.0,110810.0,0.07125439]
[1757159408917,0.31309524,110820.0,110810.0,0.03739]
[1757159414017,0.31309524,110820.0,110810.0,0.07125439]
[1757159415622,1.13517524,110820.0,110810.0,0.07125439]
[1757159417719,0.31309524,110820.0,110810.0,0.07125439]
[1757159417924,0.84444524,110820.0,110810.0,0.07125439]
[1757159420427,1.13489524,110820.0,110810.0,0.07125439]
[1757159425129,0.31309524,110820.0,110810.0,0.07125439]
[1757159425331,1.13437524,110820.0,110810.0,0.07125439]
[1757159426531,1.13437524,110820.0,110810.0,0.15150465]
[1757159426927,1.13437524,110820.0,110810.0,0.07125439]
[1757159428628,0.31309524,110820.0,110810.0,0.07125439]
[1757159428828,0.84376524,110820.0,110810.0,0.07125439]
[1757159430327,0.02264524,110820.0,110810.0,0.07125439]
[1757159430529,0.31309524,110820.0,110810.0,0.07125439]
[1757159430737,0.38512524,110820.0,110810.0,0.15150465]
[1757159432935,0.02264524,110820.0,110810.0,0.15150465]
[1757159433135,0.84340524,110820.0,110810.0,0.15150465]
[1757159433337,0.02264524,110820.0,110810.0,0.15150465]
[1757159433536,0.66004524,110820.0,110810.0,0.15150465]
[1757159434141,0.00013524,110820.0,110810.0,0.40150465]
[1757159434536,0.00013524,110820.0,110810.0,0.61170439]
[1757159434740,0.00013524,110820.0,110810.0,0.72406162]
[1757159436237,0.00013524,110820.0,110810.0,0.81429112]
[1757159439436,0.00013524,110820.0,110810.0,0.56429112]
[1757159440844,0.00013524,110820.0,110810.0,0.57337038]
[1757159441445,0.00013524,110820.0,110810.0,0.60947292]
[1757159442439,0.0001,110830.0,110810.0,1.18602546]
[1757159442648,0.0001,110830.0,110820.0,0.8022503]
[1757159442845,0.0001,110830.0,110820.0,0.72125947]
[1757159443146,0.0001,110830.0,110820.0,0.80223926]
[1757159444448,0.0001,110830.0,110820.0,0.89246056]
[1757159444643,1.82456495,110850.0,110820.0,1.25481779]
[1757159444849,0.42934749,110850.0,110840.0,0.36084254]
[1757159445250,0.42934749,110850.0,110840.0,0.39470693]
[1757159445450,0.42934749,110850.0,110840.0,0.47568672]
[1757159446050,0.35746652,110850.0,110840.0,0.39470693]
[1757159448252,0.39699864,110860.0,110840.0,0.39470693]
[1757159448451,1.23986864,110860.0,110850.0,0.36297254]
[1757159448656,0.41914864,110860.0,110850.0,0.39683693]
[1757159448954,1.23974864,110860.0,110850.0,0.39683693]
[1757159449657,1.24174864,110860.0,110850.0,0.39683693]
[1757159450356,1.25082956,110860.0,110850.0,0.39683693]
[1757159450654,1.25082956,110860.0,110850.0,0.03642]
[1757159450860,1.25082956,110860.0,110850.0,0.07028439]
[1757159452360,1.25082956,110860.0,110850.0,0.39683693]
[1757159452860,0.43022956,110860.0,110850.0,0.39683693]
[1757159453062,0.85351092,110860.0,110850.0,0.39683693]
[1757159453357,0.002,110860.0,110850.0,0.97338947]
[1757159453557,0.02415,110860.0,110850.0,0.64683693]
[1757159455563,0.02215,110860.0,110850.0,0.64683693]
[1757159463570,0.02215,110860.0,110850.0,0.32028439]
[1757159463876,0.02215,110860.0,110850.0,0.64683693]
[1757159466769,0.02215,110860.0,110850.0,0.32028439]
[1757159467160,0.02215,110860.0,110850.0,0.64683693]
[1757159469369,0.34870254,110860.0,110850.0,0.07028439]
[1757159469576,0.27215,110860.0,110850.0,0.07028439]
[1757159469777,0.59870254,110860.0,110850.0,0.39683693]
[1757159471468,0.59870254,110860.0,110850.0,0.07028439]
[1757159471665,0.59870254,110860.0,110850.0,0.03642]
[1757159472279,0.59870254,110860.0,110850.0,0.36297254]
[1757159472974,0.27215,110860.0,110850.0,0.03642]
[1757159473175,0.59870254,110860.0,110850.0,0.36297254]
[1757159475874,1.41830254,110860.0,110850.0,0.36297254]
[1757159479383,0.8194,110860.0,110850.0,0.72338947]
[1757159479585,1.22783225,110870.0,110850.0,1.05436926]
[1757159479883,1.25033225,110870.0,110860.0,0.36208254]
[1757159480072,1.25023225,110870.0,110860.0,0.36208254]
[1757159480270,1.25023225,110870.0,110860.0,0.39594693]
[1757159480576,1.25023225,110870.0,110860.0,0.36208254]
[1757159480786,1.25023225,110870.0,110860.0,0.39594693]
[1757159481089,1.25223225,110870.0,110860.0,0.39594693]
[1757159482588,0.43295225,110870.0,110860.0,0.39594693]
[1757159482782,1.25259225,110870.0,110860.0,0.39594693]
[1757159483786,0.43295225,110870.0,110860.0,0.39594693]
[1757159483985,1.25255225,110870.0,110860.0,0.39594693]